fUSD/lending_fUSD_20250422
["ID","MTS","AMOUNT","RATE_DAILY","PERIOD"]
[358674413,1745358648469,-189.49363,0.00046688,30]
[358674414,1745358648479,-8206.81025658,0.00046693,19]
[358674415,1745358648489,-499.32,0.000467,14]
[358674416,1745358648499,-690.46781375,0.000468,120]
[358674417,1745358648509,-217.1593902,0.0004684,25]
[358674418,1745358648518,-189.49363,0.00046888,30]
[358674419,1745358648528,-150.0,0.00046929,120]
[358674420,1745358648537,-1000.0,0.00046937,2]
[358674421,1745358648547,-202.765886,0.00046969,14]
[358674422,1745358648559,-850.92996821,0.0004698,2]
[358674423,1745358648570,-159.01,0.0004698,120]
[358674424,1745358648580,-500.0,0.00046986,120]
[358674425,1745358648590,-500.0,0.00046986,120]
[358674426,1745358648599,-500.0,0.00046986,120]
[358674427,1745358648610,-500.0,0.00046986,120]
[358674428,1745358648619,-500.0,0.00046986,120]
[358674429,1745358648629,-500.0,0.00046986,120]
[358674430,1745358648641,-155.72492521,0.00046986,120]
[358674431,1745358648651,-500.0,0.00046986,120]
[358674432,1745358648660,-500.0,0.00046986,120]
[358674433,1745358648669,-500.0,0.00046986,120]
[358674434,1745358648678,-500.0,0.00046986,120]
[358674435,1745358648691,-500.0,0.00046986,120]
[358674436,1745358648701,-500.0,0.00046986,120]
[358674437,1745358648710,-500.0,0.00046986,120]
[358674438,1745358648719,-500.0,0.00046986,120]
[358674439,1745358648729,-500.0,0.00046986,120]
[358674440,1745358648738,-500.0,0.00046986,120]
[358674441,1745358648749,-500.0,0.00046986,120]
[358674442,1745358648758,-550.0,0.00046986,120]
[358674443,1745358648768,-500.0,0.00046986,120]
[358674444,1745358648778,-150.5,0.0004699,120]
[358674445,1745358648787,-4990.3713518,0.00047,4]
[358674446,1745358648796,-500.0,0.00047,30]
[358674447,1745358648807,-200.0,0.00047,69]
[358674448,1745358648816,-3747.53966764,0.00047,2]
[358674449,1745358648826,-151.0,0.00047,14]
[358674450,1745358648835,-822.535712,0.00047,14]
[358674451,1745358648845,-822.535712,0.00047,14]
[358674452,1745358648855,-182.602367,0.00047,14]
[358674453,1745358648865,-182.602367,0.00047,14]
[358674454,1745358648875,-183.984739,0.00047,14]
[358674455,1745358648885,-183.984739,0.00047,14]
[358674456,1745358648895,-6531.70347215,0.00047144,2]
[358674457,1745358649382,-5782.14633084,0.00047144,2]
[358674458,1745358649394,-4365.33479156,0.00047144,2]
[358674459,1745358649406,-6874.55901428,0.00047144,2]
[358674460,1745358649452,-2239.99555988,0.00047144,2]
[358674461,1745358649464,-333.81892786,0.00047144,2]
[358674462,1745358649747,-45746.79005945,0.00047144,2]
[358674463,1745358649758,-4202.15848274,0.00047144,2]
[358674464,1745358649770,-777.77063662,0.00047144,2]
[358674465,1745358649781,-10121.15645424,0.00047144,2]
[358674466,1745358649793,-3011.97168992,0.00047144,2]
[358674467,1745358649891,-23902.04858042,0.00047144,2]
[358674468,1745358649903,-12265.62736249,0.00047144,2]
[358674469,1745358649922,-3848.13011279,0.00047144,2]
[358674470,1745358649970,-4512.94210064,0.00047144,2]
[358674471,1745358649997,-24922.46248984,0.00047144,2]
[358674472,1745358650009,-319.98,0.00047144,2]
[358674473,1745358650947,-154.883,0.00027686,2]
[358674474,1745358650957,-479.51700001,0.00047144,2]
[358674475,1745358650968,-613.2,0.00047144,2]
[358674476,1745358650987,-1188.54781117,0.00047144,2]
[358674477,1745358650999,-35895.4967976,0.00047144,2]
[358674478,1745358651018,-9306.5,0.00047144,2]
[358674479,1745358668646,1000.0,0.00018877,2]
[358674480,1745358670801,-203.02790837,0.00019873,2]
[358674482,1745358692649,-373.22342554,0.00019733,2]
[358674483,1745358722073,-172.8770813,0.00019733,2]
[358674484,1745358727626,7159.808434,7.945e-05,2]
[358674485,1745358736952,-189.12639273,0.000197,2]
[358674486,1745358747729,-80.43900727,0.000197,2]
[358674487,1745358747752,-104.97059298,0.00019733,2]
[358674488,1745358753846,-246.872,0.000197,2]
[358674490,1745358794160,-316.5256,0.000197,2]
[358674491,1745358794190,-32.43120018,0.00019733,2]
[358674492,1745358794219,-1000.0,0.00019733,2]
[358674493,1745358794248,-1651.04319982,0.00019733,2]
[358674494,1745358794893,-250.0,0.00019733,2]
[358674495,1745358818861,-598.95680018,0.00019733,2]
[358674496,1745358818891,-250.0,0.00019797,2]
[358674497,1745358818919,-150.0,0.00019797,2]
[358674498,1745358818951,-1001.04319982,0.0002,2]
[358674500,1745358845188,-142.95680018,0.0002,2]
[358674501,1745358845218,-7.04319982,0.00020051,2]
[358674507,1745358905719,-250.94045938,0.0001989,2]
[358674513,1745358952763,185.92,0.00016712,2]
[358674517,1745359032637,-372.48317704,0.0001979,2]
[358674523,1745359081600,200.0,0.00018829,2]
[358674528,1745359132613,500.0,0.00018971,2]
[358674529,1745359133060,-265.81968694,0.0001979,2]
[358674531,1745359176115,-150.0,0.00019377,2]
[358674534,1745359298854,-28.56,0.00019377,2]
[358674535,1745359298878,-141.75845198,0.000197,2]
[358674537,1745359460348,-170.31845198,0.00019645,2]
[358674543,1745359698638,-32.10527333,0.00019645,2]
[358674544,1745359698664,-250.0,0.00019673,2]
[358674545,1745359698687,-17.89472667,0.000197,2]
[358674563,1745359831682,-170.31845198,0.00019645,2]
[358674565,1745359831692,-250.0,0.00019665,2]
[358674566,1745359831703,-1678.31715218,0.000197,2]
[358674576,1745359831822,-615.29774053,0.000197,2]
[358674579,1745359831832,-150.0,0.00019745,2]
[358674582,1745359831842,-250.0,0.0001975,2]
[358674585,1745359831852,-634.33728717,0.0001979,2]
[358674588,1745359831861,-250.0,0.0001987,2]
[358674590,1745359831871,-154.92682533,0.00020767,2]
[358674593,1745359831880,-300.0,0.00020797,2]
[358674596,1745359831889,-300.0,0.00020798,2]
[358674599,1745359831899,-1900.01327502,0.00020798,2]
[358674621,1745359832027,-8099.97672498,0.00020798,2]
[358674624,1745359832036,-3948.04,0.00020798,2]
[358674627,1745359832045,-9999.99,0.00020798,2]
[358674629,1745359832054,-150.99,0.00020798,2]
[358674632,1745359832063,-499.99,0.00020798,2]
[358674635,1745359832073,-1027.3,0.00020798,2]
[358674638,1745359832083,-269.5654,0.000208,2]
[358674640,1745359832092,-300.0,0.00020856,2]
[358674642,1745359832101,-900.0,0.00020856,2]
[358674644,1745359832111,-20566.05358364,0.00020857,2]
[358674646,1745359832120,-677.0,0.00020866,2]
[358674647,1745359832129,-25942.19163207,0.00020867,2]
[358674648,1745359832139,-29841.83463571,0.00020867,2]
[358674649,1745359832149,-500.0,0.00020873,2]
[358674650,1745359832158,-168.96440878,0.00020873,2]
[358674651,1745359832167,-185.09961136,0.00020873,2]
[358674652,1745359832177,-500.0,0.00020873,2]
[358674653,1745359832186,-500.0,0.00020873,2]
[358674654,1745359832196,-627.26589791,0.00020873,2]
[358674655,1745359832205,-479.49555953,0.00020873,2]
[358674656,1745359832214,-500.0,0.00020873,2]
[358674657,1745359832223,-171.94808928,0.00020873,2]
[358674658,1745359832233,-500.0,0.00020873,2]
[358674659,1745359832244,-410.33492546,0.00020873,2]
[358674660,1745359832254,-500.0,0.00020873,2]
[358674661,1745359832263,-511.64,0.00020951,2]
[358674662,1745359832272,-1272.64015115,0.00021134,2]
[358674663,1745359832282,-1000.0,0.00021236,2]
[358674664,1745359832292,-150.0,0.00021315,2]
[358674665,1745359832301,-23900.0,0.00021396,2]
[358674667,1745359832310,-1000.0,0.000216,2]
[358674669,1745359832319,-250.0,0.0002161,2]
[358674671,1745359832328,-250.0,0.0002161,2]
[358674673,1745359832338,-929.8215,0.00021663,2]
[358674675,1745359832347,-150.0,0.0002167,2]
[358674677,1745359832356,-150.0,0.0002167,2]
[358674679,1745359832366,-3532.93,0.0002168,2]
[358674681,1745359832376,-250.0,0.00021787,2]
[358674683,1745359832387,-4097.24417667,0.000219,3]
[358674685,1745359832396,-1000.0,0.00022,2]
[358674687,1745359832405,-328.7137057,0.0002221,2]
[358674689,1745359832414,-420.0,0.00022627,2]
[358674691,1745359832425,-332.02320244,0.00022679,2]
[358674693,1745359832434,-420.0,0.0002269,2]
[358674695,1745359832444,-1260.0,0.00022797,2]
[358674696,1745359832453,-4097.24417646,0.00023141,4]
[358674698,1745359832463,-2014.76587513,0.00023549,2]
[358674700,1745359832472,-1000.0,0.00023596,2]
[358674702,1745359832482,-990.37,0.000238,2]
[358674704,1745359832493,-696.85345942,0.000238,2]
[358674706,1745359832502,-4097.24417646,0.00024383,5]
[358674708,1745359832512,-587.0,0.00024619,2]
[358674710,1745359832522,-323.0,0.00024685,2]
[358674712,1745359832531,-1763.0,0.0002492,2]
[358674714,1745359832540,-4097.24417646,0.00025624,6]
[358674716,1745359832551,-1000.0,0.00025955,2]
[358674718,1745359832561,-577.754506,0.00026352,2]
[358674720,1745359832571,-500.0,0.00026352,2]
[358674722,1745359832580,-1000.0,0.00026352,2]
[358674724,1745359832590,-823.0,0.00026785,2]
[358674726,1745359832600,-4097.24417646,0.00026866,7]
[358674728,1745359832610,-868.298,0.0002708,2]
[358674730,1745359832619,-876.0,0.0002708,2]
[358674732,1745359832629,-2469.0,0.0002724,2]
[358674734,1745359832639,-175.19,0.00027389,2]
[358674736,1745359832650,-150.0,0.00027397,2]
[358674738,1745359832660,-166.66,0.00027634,2]
[358674740,1745359832670,-1000.0,0.00028,2]
[358674742,1745359832681,-4097.24417646,0.00028107,7]
[358674744,1745359832691,-1000.0,0.00028315,2]
[358674746,1745359832700,-1000.0,0.000285,2]
[358674748,1745359832710,-166.66,0.00028546,2]
[358674750,1745359832720,-562.72519859,0.00028683,17]
[358674752,1745359832730,-154.23,0.00028783,120]
[358674754,1745359832741,-1152.0,0.00029142,2]
[358674756,1745359832750,-4097.24417646,0.00029348,8]
[358674758,1745359832760,-166.66,0.00029458,2]
[358674760,1745359832771,-3457.0,0.00029777,2]
[358674762,1745359832780,-876.0,0.0003008,2]
[358674764,1745359832791,-3532.93,0.00030352,2]
[358674766,1745359832800,-166.66,0.00030371,2]
[358674768,1745359832810,-982.332,0.000304,2]
[358674770,1745359832819,-4097.24417646,0.0003059,9]
[358674772,1745359832829,-150.0,0.00030686,2]
[358674774,1745359832838,-166.66,0.00031283,2]
[358674776,1745359832848,-234.0,0.00031707,3]
[358674778,1745359832857,-4097.24417646,0.00031831,10]
[358674780,1745359832867,-166.66,0.00032195,2]
[358674782,1745359832877,-356.0,0.00032549,3]
[358674784,1745359832887,-177.95,0.00032615,2]
[358674786,1745359832897,-152.01,0.00032877,30]
[358674788,1745359832908,-1500.0,0.00032877,120]
[358674790,1745359832919,-150.0,0.00032877,2]
[358674792,1745359832931,-4097.24417646,0.00033072,11]
[358674794,1745359832940,-876.0,0.0003308,2]
[358674796,1745359832949,-291.13,0.00033197,2]
[358674798,1745359832959,-150.0,0.00033686,2]
[358674800,1745359832970,-157.0,0.00034,2]
[358674802,1745359832980,-300.0,0.00034038,2]
[358674804,1745359832991,-4097.24417646,0.00034314,11]
[358674806,1745359833003,-998.74,0.00035277,2]
[358674808,1745359833014,-150.0,0.00035492,2]
[358674810,1745359833024,-992.23,0.0003552,30]
[358674812,1745359833035,-4097.24417646,0.00035555,12]
[358674814,1745359833046,-682.0,0.000356,2]
[358674816,1745359833056,-876.0,0.0003608,2]
[358674817,1745359833066,-1370.74038935,0.00036371,2]
[358674819,1745359833076,-153.07,0.00036449,2]
[358674821,1745359833085,-4097.24417646,0.00036797,13]
[358674823,1745359833095,-200.0,0.00037469,2]
[358674825,1745359833105,-152.01,0.00037967,30]
[358674828,1745359833115,-4097.24417646,0.00038038,14]
[358674830,1745359833125,-191.53,0.00038252,2]
[358674831,1745359833135,-668.73,0.00038265,2]
[358674833,1745359833146,-1657.681,0.0003874,52]
[358674835,1745359833156,-184.219,0.0003874,52]
[358674837,1745359833166,-876.0,0.0003908,2]
[358674839,1745359833176,-4097.24417646,0.00039279,15]
[358674841,1745359833186,-220.0,0.00039397,2]
[358674843,1745359833196,-1033.76773723,0.00039964,15]
[358674845,1745359833206,-162.95,0.0004,30]
[358674847,1745359833215,-500.0,0.00040203,7]
[358674849,1745359833225,-26535.043333,0.00040519,3]
[358674850,1745359833235,-976.17223387,0.00040521,15]
[358674917,1745359833925,-417.53020642,0.00040521,15]
[358674920,1745359833946,-2703.54173617,0.00040521,15]
[358674922,1745359833956,-668.73,0.00040529,2]
[358674924,1745359833967,-305.5,0.00041095,120]
[358674926,1745359833977,-4097.24417646,0.00041762,16]
[358674927,1745359833987,-876.0,0.0004208,2]
[358674929,1745359834000,-305.5,0.00042465,120]
[358674931,1745359834011,-1247.0,0.00042589,7]
[358674933,1745359834022,-153.747421,0.00042717,120]
[358674935,1745359834032,-668.73,0.00042793,2]
[358674937,1745359834043,-4097.24417646,0.00043003,17]
[358674939,1745359834053,-1033.76773723,0.0004303,15]
[358674941,1745359834063,-500.0,0.00043039,10]
[358674942,1745359834072,-500.0,0.00043039,10]
[358674943,1745359834082,-152.01,0.00043058,30]
[358674944,1745359834092,-528.21523767,0.00043204,10]
[358674945,1745359834101,-500.0,0.00043521,10]
[358674946,1745359834111,-499.34839662,0.0004358,10]
[358674947,1745359834121,-1003.36439791,0.00043587,10]
[358674948,1745359834131,-305.5,0.00043835,120]
[358674949,1745359834141,-500.0,0.00043865,120]
[358674950,1745359834151,-500.0,0.00043865,120]
[358674951,1745359834161,-500.0,0.00043865,120]
[358674952,1745359834170,-500.0,0.00043865,120]
[358674953,1745359834180,-500.0,0.00043865,120]
[358674954,1745359834189,-500.0,0.00043865,120]
[358674955,1745359834199,-500.0,0.00043865,120]
[358674956,1745359834208,-500.0,0.00043865,120]
[358674957,1745359834218,-500.0,0.00043865,120]
[358674958,1745359834228,-500.0,0.00043865,120]
[358674959,1745359834242,-500.0,0.00043865,120]
[358674960,1745359834251,-500.0,0.00043865,120]
[358674961,1745359834261,-500.0,0.00043865,120]
[358674962,1745359834271,-500.0,0.00043865,120]
[358674963,1745359834280,-500.0,0.00043865,120]
[358674964,1745359834289,-500.0,0.00043865,120]
[358674965,1745359834300,-500.0,0.00043865,120]
[358674966,1745359834311,-500.0,0.00043865,120]
[358674967,1745359834321,-500.0,0.00043865,120]
[358674968,1745359834331,-500.0,0.00043865,120]
[358674969,1745359834341,-500.0,0.00043865,120]
[358674970,1745359834351,-500.0,0.00043865,120]
[358674971,1745359834361,-500.0,0.00043865,120]
[358674972,1745359834371,-500.0,0.00043865,120]
[358674973,1745359834380,-500.0,0.00043865,120]
[358674974,1745359834390,-500.0,0.00043865,120]
[358674975,1745359834400,-500.0,0.00043865,120]
[358674976,1745359834410,-500.0,0.00043865,120]
[358674977,1745359834420,-500.0,0.00043865,120]
[358674978,1745359834434,-500.0,0.00043865,120]
[358674979,1745359834444,-500.0,0.00043865,120]
[358674980,1745359834454,-500.0,0.00043865,120]
[358674981,1745359834464,-500.0,0.00043865,120]
[358674982,1745359834474,-500.0,0.00043865,120]
[358674983,1745359834483,-500.0,0.00043865,120]
[358674984,1745359834494,-500.0,0.00043865,120]
[358674985,1745359834504,-500.0,0.00043865,120]
[358674986,1745359834513,-500.0,0.00043865,120]
[358674987,1745359834523,-500.0,0.00043865,120]
[358674988,1745359834534,-500.0,0.00043865,120]
[358674989,1745359834544,-500.0,0.00043865,120]
[358674990,1745359834554,-500.0,0.00043865,120]
[358674991,1745359834564,-500.0,0.00043865,120]
[358674992,1745359834577,-500.0,0.00043865,120]
[358674993,1745359834587,-500.0,0.00043865,120]
[358674994,1745359834597,-500.0,0.00043865,120]
[358674995,1745359834606,-500.0,0.00043865,120]
[358674996,1745359834616,-500.0,0.00043865,120]
[358674997,1745359834625,-500.0,0.00043865,120]
[358674998,1745359834635,-500.0,0.00043865,120]
[358674999,1745359834646,-500.0,0.00043865,120]
[358675000,1745359834656,-500.0,0.00043865,120]
[358675001,1745359834665,-500.0,0.00043865,120]
[358675002,1745359834675,-500.0,0.00043865,120]
[358675003,1745359834686,-500.0,0.00043865,120]
[358675004,1745359834696,-500.0,0.00043865,120]
[358675005,1745359834706,-500.0,0.00043865,120]
[358675006,1745359834715,-500.0,0.00043865,120]
[358675007,1745359834726,-500.0,0.00043865,120]
[358675008,1745359834736,-500.0,0.00043865,120]
[358675009,1745359834748,-500.0,0.00043865,120]
[358675010,1745359834759,-500.0,0.00043865,120]
[358675011,1745359834768,-500.0,0.00043865,120]
[358675012,1745359834778,-500.0,0.00043865,120]
[358675013,1745359834788,-500.0,0.00043865,120]
[358675014,1745359834797,-500.0,0.00043865,120]
[358675015,1745359834807,-500.0,0.00043865,120]
[358675016,1745359834817,-500.0,0.00043865,120]
[358675017,1745359834827,-500.0,0.00043865,120]
[358675018,1745359834838,-500.0,0.00043865,120]
[358675019,1745359834848,-500.0,0.00043865,120]
[358675020,1745359834858,-500.0,0.00043865,120]
[358675021,1745359834869,-500.0,0.00043865,120]
[358675022,1745359834879,-500.0,0.00043865,120]
[358675023,1745359834889,-500.0,0.00043865,120]
[358675024,1745359834899,-500.0,0.00043865,120]
[358675025,1745359834910,-500.0,0.00043865,120]
[358675026,1745359834921,-500.0,0.00043865,120]
[358675027,1745359834932,-500.0,0.00043865,120]
[358675028,1745359834942,-500.0,0.00043865,120]
[358675029,1745359834952,-500.0,0.00043865,120]
[358675030,1745359834963,-500.0,0.00043865,120]
[358675031,1745359834973,-500.0,0.00043865,120]
[358675032,1745359834983,-500.0,0.00043865,120]
[358675033,1745359834996,-500.0,0.00043865,120]
[358675034,1745359835006,-500.0,0.00043865,120]
[358675035,1745359835016,-500.0,0.00043865,120]
[358675036,1745359835026,-500.0,0.00043865,120]
[358675037,1745359835036,-500.0,0.00043865,120]
[358675038,1745359835046,-500.0,0.00043865,120]
[358675039,1745359835056,-500.0,0.00043865,120]
[358675040,1745359835067,-500.0,0.00043865,120]
[358675041,1745359835078,-500.0,0.00043865,120]
[358675042,1745359835088,-500.0,0.00043865,120]
[358675043,1745359835098,-442.70855098,0.00043865,120]
[358675044,1745359835112,-57.29144902,0.00043865,120]
[358675045,1745359835122,-500.0,0.00043865,120]
[358675046,1745359835132,-23.45232018,0.00043865,120]
[358675047,1745359835144,-476.54767982,0.00043865,120]
[358675048,1745359835153,-172.10713553,0.00043865,120]
[358675049,1745359835164,-327.89286447,0.00043865,120]
[358675050,1745359835174,-500.0,0.00043865,120]
[358675051,1745359835184,-500.0,0.00043865,120]
[358675052,1745359835194,-500.0,0.00043865,120]
[358675053,1745359835203,-500.0,0.00043865,120]
[358675054,1745359835213,-500.0,0.00043865,120]
[358675055,1745359835224,-500.0,0.00043865,120]
[358675056,1745359835234,-500.0,0.00043865,120]
[358675057,1745359835247,-500.0,0.00043865,120]
[358675058,1745359835257,-500.0,0.00043865,120]
[358675059,1745359835267,-500.0,0.00043865,120]
[358675060,1745359835278,-500.0,0.00043865,120]
[358675061,1745359835288,-500.0,0.00043865,120]
[358675062,1745359835299,-500.0,0.00043865,120]
[358675063,1745359835309,-500.0,0.00043865,120]
[358675064,1745359835318,-500.0,0.00043865,120]
[358675065,1745359835328,-500.0,0.00043865,120]
[358675066,1745359835337,-500.0,0.00043865,120]
[358675067,1745359835347,-500.0,0.00043865,120]
[358675068,1745359835356,-564.0,0.00043865,120]
[358675069,1745359835366,-500.0,0.00043865,120]
[358675070,1745359835375,-500.0,0.00043865,120]
[358675071,1745359835385,-500.0,0.00043865,120]
[358675072,1745359835396,-500.0,0.00043865,120]
[358675073,1745359835405,-500.0,0.00043865,120]
[358675074,1745359835414,-500.0,0.00043865,120]
[358675075,1745359835424,-500.0,0.00043865,120]
[358675076,1745359835433,-500.0,0.00043865,120]
[358675077,1745359835442,-500.0,0.00043865,120]
[358675078,1745359835452,-500.0,0.00043865,120]
[358675079,1745359835462,-500.0,0.00043865,120]
[358675080,1745359835471,-500.0,0.00043865,120]
[358675081,1745359835480,-500.0,0.00043865,120]
[358675082,1745359835493,-500.0,0.00043865,120]
[358675083,1745359835503,-500.0,0.00043865,120]
[358675084,1745359835513,-500.0,0.00043865,120]
[358675085,1745359835522,-500.0,0.00043865,120]
[358675086,1745359835531,-98.58652499,0.00043865,120]
[358675087,1745359835543,-401.41347501,0.00043865,120]
[358675088,1745359835553,-205.55652499,0.00043865,120]
[358675092,1745359837666,-1509.98033706,0.00032615,2]
[358675093,1745359837693,-342.43966294,0.00032615,2]
[358675094,1745359837703,-500.0,0.00039726,15]
[358675095,1745359837713,-500.0,0.00039726,15]
[358675096,1745359837722,-500.0,0.00039726,15]
[358675097,1745359837732,-500.0,0.00039726,15]
[358675098,1745359837741,-500.0,0.00039726,15]
[358675099,1745359837752,-500.0,0.00039726,15]
[358675100,1745359837762,-500.0,0.00039726,15]
[358675101,1745359837771,-500.0,0.00039726,15]
[358675102,1745359837781,-500.0,0.00039726,15]
[358675103,1745359837791,-500.0,0.00039726,15]
[358675104,1745359837801,-500.0,0.00039726,15]
[358675105,1745359837810,-500.0,0.00039726,15]
[358675106,1745359837820,-500.0,0.00039726,15]
[358675107,1745359837829,-500.0,0.00039726,15]
[358675108,1745359837839,-500.0,0.00039726,15]
[358675109,1745359837848,-500.0,0.00039726,15]
[358675110,1745359837858,-500.0,0.00039726,15]
[358675111,1745359837868,-500.0,0.00039726,15]
[358675112,1745359837878,-500.0,0.00039726,15]
[358675113,1745359837887,-500.0,0.00039726,15]
[358675114,1745359837896,-500.0,0.00039726,15]
[358675115,1745359837906,-427.05425699,0.00039726,15]
[358675116,1745359837941,-72.94574301,0.00039726,15]
[358675117,1745359837950,-359.07113775,0.00039726,15]
[358675118,1745359837963,-140.92886225,0.00039726,15]
[358675119,1745359837973,-500.0,0.00039726,15]
[358675120,1745359837983,-500.0,0.00039726,15]
[358675121,1745359837993,-500.0,0.00039726,15]
[358675122,1745359838004,-500.0,0.00039726,15]
[358675123,1745359838014,-500.0,0.00039726,15]
[358675124,1745359838023,-500.0,0.00039726,15]
[358675125,1745359838033,-500.0,0.00039726,15]
[358675126,1745359838042,-500.0,0.00039726,15]
[358675127,1745359838052,-500.0,0.00039726,15]
[358675128,1745359838061,-500.0,0.00039726,15]
[358675129,1745359838071,-500.0,0.00039726,15]
[358675130,1745359838081,-500.0,0.00039726,15]
[358675131,1745359838090,-500.0,0.00039726,15]
[358675132,1745359838099,-500.0,0.00039726,15]
[358675133,1745359838109,-294.44347501,0.00043865,120]
[358675134,1745359838118,-500.0,0.00043865,120]
[358675136,1745359838128,-500.0,0.00043865,120]
[358675138,1745359838137,-500.0,0.00043865,120]
[358675140,1745359838147,-500.0,0.00043865,120]
[358675142,1745359838156,-500.0,0.00043865,120]
[358675143,1745359838166,-500.0,0.00043865,120]
[358675145,1745359838175,-500.0,0.00043865,120]
[358675147,1745359838184,-500.0,0.00043865,120]
[358675149,1745359838194,-500.0,0.00043865,120]
[358675151,1745359838203,-500.0,0.00043865,120]
[358675153,1745359838212,-500.0,0.00043865,120]
[358675155,1745359838222,-500.0,0.00043865,120]
[358675157,1745359838231,-500.0,0.00043865,120]
[358675159,1745359838240,-500.0,0.00043865,120]
[358675161,1745359838251,-500.0,0.00043865,120]
[358675163,1745359838260,-500.0,0.00043865,120]
[358675165,1745359838269,-500.0,0.00043865,120]
[358675167,1745359838278,-500.0,0.00043865,120]
[358675169,1745359838287,-500.0,0.00043865,120]
[358675171,1745359838297,-500.0,0.00043865,120]
[358675173,1745359838306,-500.0,0.00043865,120]
[358675175,1745359838315,-500.0,0.00043865,120]
[358675177,1745359838325,-500.0,0.00043865,120]
[358675179,1745359838334,-500.0,0.00043865,120]
[358675181,1745359838343,-500.0,0.00043865,120]
[358675183,1745359838352,-500.0,0.00043865,120]
[358675184,1745359838361,-500.0,0.00043865,120]
[358675186,1745359838370,-500.0,0.00043865,120]
[358675188,1745359838379,-500.0,0.00043865,120]
[358675191,1745359838390,-500.0,0.00043865,120]
[358675193,1745359838399,-500.0,0.00043865,120]
[358675194,1745359838409,-500.0,0.00043865,120]
[358675196,1745359838418,-500.0,0.00043865,120]
[358675198,1745359838427,-500.0,0.00043865,120]
[358675200,1745359838436,-500.0,0.00043865,120]
[358675202,1745359838447,-500.0,0.00043865,120]
[358675204,1745359838456,-500.0,0.00043865,120]
[358675206,1745359838465,-500.0,0.00043865,120]
[358675207,1745359838475,-500.0,0.00043865,120]
[358675208,1745359838485,-500.0,0.00043865,120]
[358675209,1745359838496,-500.0,0.00043865,120]
[358675210,1745359838506,-500.0,0.00043865,120]
[358675211,1745359838515,-500.0,0.00043865,120]
[358675212,1745359838525,-500.0,0.00043865,120]
[358675213,1745359838534,-500.0,0.00043865,120]
[358675214,1745359838544,-500.0,0.00043865,120]
[358675215,1745359838554,-500.0,0.00043865,120]
[358675216,1745359838566,-500.0,0.00043865,120]
[358675217,1745359838575,-500.0,0.00043865,120]
[358675218,1745359838584,-500.0,0.00043865,120]
[358675219,1745359838594,-500.0,0.00043865,120]
[358675221,1745359838603,-500.0,0.00043865,120]
[358675222,1745359838614,-500.0,0.00043865,120]
[358675224,1745359838623,-500.0,0.00043865,120]
[358675226,1745359838633,-500.0,0.00043865,120]
[358675228,1745359838642,-617.0,0.00043865,120]
[358675230,1745359838652,-180.0,0.00044,90]
[358675232,1745359838662,-180.0,0.0004411,90]
[358675234,1745359838671,-26535.043333,0.00044225,3]
[358675236,1745359838682,-1465.947657,0.00044225,120]
[358675238,1745359838691,-165.8,0.00044226,2]
[358675240,1745359838701,-992.23,0.00044235,120]
[358675242,1745359838710,-2754.75019308,0.00044245,18]